Cogmind - Beta 15 @@@ ROGUE MODE // 2025.07.06 @ 13:52:53 Player: winnking222 Result: Destroyed by 8R-AWN with 8R-AWN's Boregun Performance ------------- Evolutions (0) 0 Regions Visited (3) 600 Robots Destroyed (24) 120 Value Destroyed (517) 517 Prototype IDs (26) 520 Alien Tech Used (0) 0 Bonus (300) 300 TOTAL SCORE: 2057 Bonus ------- Aligned with FarCom 300 Cogmind --------- Core Integrity 0/250 Matter 5/300 Energy 125/125 System Corruption 2% Temperature Cool (70) Movement Treading (320) Ox2 Location -10/Exiles Parts ------- > --- POWER (1) -------- Light Ion Engine > --- PROPULSION (2) --- Light Treads (fused) Light Treads > --- UTILITY (2) ------ Huge Storage Unit > --- WEAPON (2) ------- Grenade Launcher Rocket Launcher > --- INVENTORY (25) --- Ion Engine Light Treads Light Treads Improved Heat Sink Seismic Detector Seismic Detector Small Laser Grenade Launcher Peak State ------------ > --- POWER ------------ Light Ion Engine > --- PROPULSION ------- Light Treads Light Treads > --- UTILITY ---------- Huge Storage Unit Seismic Detector > --- WEAPON ----------- Small Laser Rocket Launcher > --- INVENTORY -------- Ion Engine Reinforced Deuterium Engine Fission Core Light Fission Core Light Treads Light Treads Compact Wheel Improved Heat Sink Seismic Detector Light Armor Plating Grenade Launcher Grenade Launcher [Rating: 10] Favorites ----------- Power Light Ion Engine Engine Light Ion Engine Propulsion Light Treads Treads Light Treads Wheel Compact Wheel Utility Huge Storage Unit Device Seismic Detector Storage Huge Storage Unit Protection Light Armor Plating Weapon Small Laser Energy Gun Small Laser Ballistic Gun Assault Rifle Launcher Rocket Launcher Build | -11 -10 -10 -10 ------- Run | Yrd Mat Min Exi Slots Evolved . | . . . . Power . | . . . . Propulsion . | . . . . Utility . | . . . . Weapon . | . . . . Parts Attached 16 | 7 2 2 5 Power 2 | 1 . 1 . Engine 2 | 1 . 1 . Core . | . . . . Reactor . | . . . . Propulsion 5 | 2 . 1 2 Treads 4 | 2 . 1 1 Leg . | . . . . Wheel 1 | . . . 1 Hover . | . . . . Flight . | . . . . Utility 4 | 2 1 . 1 Device 1 | 1 . . . Storage 2 | 1 1 . . Processor . | . . . . Hackware . | . . . . Protection 1 | . . . 1 Artifact . | . . . . Weapon 5 | 2 1 . 2 Energy Gun 2 | 2 . . . Energy Cannon . | . . . . Ballistic Gun 1 | . 1 . . Ballistic Cannon . | . . . . Launcher 2 | . . . 2 Special Weapon . | . . . . Impact Weapon . | . . . . Slashing Weapon . | . . . . Piercing Weapon . | . . . . Special Melee Weapon . | . . . . Unidentified Prototypes . | . . . . Parts Lost 6 | . . 4 2 Power 1 | . . 1 . Propulsion 2 | . . 1 1 Utility 1 | . . . 1 Weapon 2 | . . 2 . Highest Loss Streak 4 | . . 4 2 To Critical Strikes . | . . . . Average Backups 10 | 2 9 10 13 Power 2 | . 1 1 3 Propulsion 2 | 1 1 3 2 Utility 3 | . 2 4 4 Weapon 2 | . 2 2 2 Tool/Special . | . . . . Unused Backups 12 | . . . 12 Power 4 | . . . 4 Propulsion 1 | . . . 1 Utility 6 | . . . 6 Weapon 1 | . . . 1 Tool/Special . | . . . . Average Slot Usage (%) 90 | . 99 84 87 Engine 13 | . 14 13 14 Treads 27 | . 28 27 27 Device 12 | . 14 14 11 Storage 14 | . 14 14 14 Energy Gun 13 | . 14 14 13 Ballistic Gun 4 | . 13 . . Launcher 1 | . . . 3 Peak Build Rating 10 | 7 8 8 10 Average Rating 7 | 5 7 6 8 On Entrance 5 | . 7 8 7 Naked Turns . | . . . . Heaviest Build 93 | 13 89 85 93 Greatest Support 40 | 40 40 40 40 Greatest Overweight (x) 5 | 1 2 4 5 Average Overweight (x) 1 | . 1 2 2 Largest Inventory Capacity 25 | 8 25 25 25 Average Capacity 23 | 7 22 25 25 Most Carried 17 | 5 13 13 17 Average Carried 11 | 2 9 10 13 Final Capacity 25 | 8 25 25 25 Final Carried 13 | 3 13 11 8 Class Distribution -------------------- 100% | Mutant Dominant Class ---------------- Mutant | -10/Materials Mutant | -10/Mines Mutant | -10/Exiles Resources | -11 -10 -10 -10 ----------- Run | Yrd Mat Min Exi Matter Collected 715 | 260 287 77 91 Remotely . | . . . . Salvage Created 921 | 148 600 173 . Parts 52 | 9 34 9 . Haulers Intercepted 2 | . 2 . . Recyclers Shooed . | . . . . Parts Field Recycled . | . . . . Retrieved Matter . | . . . . Parts Self-Destructed . | . . . . Prevented . | . . . . Kills | -11 -10 -10 -10 ------- Run | Yrd Mat Min Exi Combat Hostiles Destroyed 17 | . 11 3 3 Guns 15 | . 11 3 1 AOE 2 | . . . 2 Classes Destroyed 8 | 2 4 1 1 Builder 1 | . . 1 . Tunneler 3 | 3 . . . Hauler 2 | . 2 . . Recycler 2 | 1 1 . . Watcher 2 | . 2 . . Swarmer 3 | . 3 . . Grunt 11 | . 8 3 . Assembled 3 | . . . 3 Best Kill Streak 3 | 3 3 3 3 Combat Bots Only 3 | . 3 3 3 Max Kills in Single Turn 1 | 1 1 1 1 Gunslinging . | . . . . Exploded 1 | . . . 1 Melee . | . . . . Uniques/NPCs Destroyed . | . . . . Combat | -11 -10 -10 -10 -------- Run | Yrd Mat Min Exi Hostile Shots Fired 105 | . 51 22 32 Missed 28 | . 17 4 7 Hits 77 | . 34 18 25 Melee 2 | . . . 2 Projectile 75 | . 34 18 23 Critical Strikes 16 | . . . 16 Damage Taken 1139 | . 397 257 485 Core 254 | . 35 106 113 Absorbed by Shields . | . . . . Core Remaining (%) 100 | 100 . . . Volleys Fired 117 | 10 48 26 33 Largest 2 | 2 2 2 2 Hottest 80 | 80 60 80 63 Shots Fired 192 | 20 95 31 46 Gun 165 | 20 95 31 19 Cannon . | . . . . Launcher 27 | . . . 27 Special . | . . . . Kinetic 52 | . 48 4 . Thermal 113 | 20 47 27 19 Explosive 27 | . . . 27 Electromagnetic . | . . . . Robot Hit Streak 14 | 4 14 9 8 Robot Miss Streak 4 | 2 4 4 4 Penetration Max . | . . . . Secondary Targets 2 | . 2 . . Max Gunslinging Chain 1 | . 1 . . Shots Hit Robots 116 | 12 66 20 18 Core Hits 53 | 5 29 8 11 Critical Kills . | . . . . Critical Parts Destroyed . | . . . . Critical Strikes . | . . . . Melee Attacks . | . . . . Impact . | . . . . Slashing . | . . . . Piercing . | . . . . Sneak Attacks . | . . . . Combat Hostiles . | . . . . Follow-up Attacks . | . . . . Damage Inflicted 1448 | 134 806 234 274 Guns 1171 | 134 798 216 23 Cannons . | . . . . Explosions 251 | . . . 251 Melee . | . . . . Ramming 26 | . 8 18 . Kinetic 461 | . 428 33 . Thermal 710 | 134 370 183 23 Explosive 251 | . . . 251 Electromagnetic . | . . . . Impact . | . . . . Slashing . | . . . . Piercing . | . . . . Highest Corruption 2 | . 2 2 2 Average Corruption 2 | . 2 2 2 Corruption Purged . | . . . . Corruption Blocked . | . . . . Effects 49 | . 5 19 25 Message Errors 12 | . . 5 7 Matter Fused 13 | . 3 6 4 Heat Flow Errors 7 | . 1 3 3 Energy Discharges 4 | . . 3 1 Parts Fused 1 | . . . 1 Data Loss (minor) 6 | . 1 1 4 Data Loss (major) 4 | . . 1 3 Misfires 2 | . . . 2 Overload Shots . | . . . . Overflow Damage . | . . . . Projectiles . | . . . . Explosions . | . . . . Melee . | . . . . Knockbacks 1 | . . 1 . Impact 1 | . . 1 . Kinetic . | . . . . Secondary . | . . . . Self-Inflicted Damage 50 | . . . 50 Shots 2 | . . . 2 Rammed 4 | . 2 2 . Targets Rammed 5 | . 2 3 . Kicked . | . . . . Crushed 1 | . . 1 . Highest Temperature 245 | 90 231 245 214 Average Temperature 52 | 34 34 78 57 Received Heat Transfer 352 | . 168 144 40 Effects 1 | . . . 1 Energy Bleed 1 | . . . 1 Siege Activations . | . . . . Martial Activations . | . . . . Shielding Activations . | . . . . Robots Disrupted . | . . . . Combat Hostiles . | . . . . Robots Corrupted . | . . . . Combat Hostiles . | . . . . Parts Fried . | . . . . Impact Corruptions . | . . . . Robots Melted . | . . . . Combat Hostiles . | . . . . Parts Melted 1 | 1 . . . Heat Transferred 1625 | 300 850 425 50 Parts Sabotaged . | . . . . Parts Stolen . | . . . . Parts Stripped . | . . . . Power Chain Reactions . | . . . . Alert | -11 -10 -10 -10 ------- Run | Yrd Mat Min Exi Maximum Alert Level . | . . . . Low Security (%) 100 | 100 100 100 . Level 1 . | . . . . Level 2 . | . . . . Level 3 . | . . . . Level 4 . | . . . . Level 5 . | . . . . High Security . | . . . . Max Security . | . . . . Peak Influence 85 | 5 85 30 . Initial 7 | . . 7 . Average 11 | 1 23 . . Influence Increases 427 | 20 327 80 . Destroy 0b10 Robot/C 280 | . 220 60 . Destroy 0b10 Robot/NC 55 | 20 25 10 . Destroy Leader 58 | . 48 10 . Successful Hack 19 | . 19 . . Lose Combat Pursuer 15 | . 15 . . Influence Decreases 427 | 20 306 101 . Entered New Map 14 | . . 14 . Time Decay 376 | 20 306 50 . Lost Part 37 | . . 37 . Squads Dispatched 1 | . 1 . . Investigation . | . . . . Extermination . | . . . . Reinforcement 1 | . 1 . . Assault . | . . . . Garrison . | . . . . Intercept . | . . . . Searches Triggered . | . . . . Construction Impeded . | . . . . Haulers Reinforced . | . . . . Active Scanning Responses . | . . . . Cargo Convoy Interrupts . | . . . . Stealth | -11 -10 -10 -10 --------- Run | Yrd Mat Min Exi Distress Signals 2 | . 2 . . Communications Jammed . | . . . . Distress Signals . | . . . . Times Spotted 33 | . 23 3 7 Peak Tracking Total 10 | . 4 3 10 Tactical Retreats 2 | . 1 . 1 Traps | -11 -10 -10 -10 ------- Run | Yrd Mat Min Exi Traps Triggered 3 | . 3 . . Indirectly . | . . . . Trap Hack Attempts . | . . . . Triggered . | . . . . Disarmed . | . . . . Reprogrammed . | . . . . Reused . | . . . . Traps Extracted . | . . . . Installed . | . . . . Triggered . | . . . . Machines | -11 -10 -10 -10 ---------- Run | Yrd Mat Min Exi Machines Disabled 7 | . . . 7 Max in Single Turn 1 | . . . 1 Machines Repaired . | . . . . Machines Dismantled . | . . . . Machines Sabotaged . | . . . . Overloaded Fab Kills . | . . . . Hacking | -11 -10 -10 -10 --------- Run | Yrd Mat Min Exi Machines Accessed 6 | . 5 . 1 Terminals 5 | . 5 . . Fabricators . | . . . . Repair Stations . | . . . . Recycling Units . | . . . . Scanalyzers . | . . . . Garrison Access . | . . . . Total Hacks 9 | . 8 . 1 Successful 6 | . 5 . 1 Failed 3 | . 3 . . Catastrophic . | . . . . Database Lockouts . | . . . . Manual 1 | . . . 1 Terminals 8 | . 8 . . Fabricators . | . . . . Repair Stations . | . . . . Recycling Units . | . . . . Scanalyzers . | . . . . Garrison Access . | . . . . Terminal Hacks 6 | . 5 . 1 Robot Analysis 1 | . 1 . . Prototype ID Bank 1 | . 1 . . Alert Level 1 | . 1 . . Locate Traps 1 | . 1 . . Hauler Manifests 1 | . 1 . . Proto ID Catalog 1 | . . . 1 Fabricator Hacks . | . . . . Repair Station Hacks . | . . . . Recycling Unit Hacks . | . . . . Scanalyzer . | . . . . Garrison Access Hacks . | . . . . Unauthorized Hacks . | . . . . Terminals . | . . . . Fabricators . | . . . . Repair Stations . | . . . . Recycling Units . | . . . . Scanalyzers . | . . . . Garrison Access . | . . . . Data Cores Recovered . | . . . . Used . | . . . . Hacking Detections 2 | . 2 . . Full Trace Events . | . . . . Feedback Events . | . . . . Feedback Blocked . | . . . . Robot Schematics Acquired . | . . . . Robots Built . | . . . . Authchips . | . . . . Time . | . . . . Total Robot Build Rating . | . . . . Part Schematics Acquired . | . . . . Parts Built . | . . . . Authchips . | . . . . Time . | . . . . Total Part Build Rating . | . . . . Parts Repaired . | . . . . Time . | . . . . Parts Recycled . | . . . . Recycled Matter . | . . . . Retrieved Matter . | . . . . Retrieved Components . | . . . . Parts Scanalyzed . | . . . . Part Schematics Acquired . | . . . . Parts Damaged . | . . . . Bothacking | -11 -10 -10 -10 ------------ Run | Yrd Mat Min Exi Used RIF Installer . | . . . . Robots Hacked . | . . . . Non-combat . | . . . . Combat . | . . . . Robot Hacks Applied . | . . . . Relay Couplers Released . | . . . . Fabnet Peak Effective % . | . . . . Robots Rewired . | . . . . Allies Hacked . | . . . . Hacks Repelled . | . . . . Allies | -11 -10 -10 -10 -------- Run | Yrd Mat Min Exi Total Allies 3 | . . 3 . Largest Group 3 | . . 3 3 Highest-Rated Group 40 | . . 40 40 Highest-Rated Ally 16 | . . 16 16 Total Orders 3 | . . . 3 STAY 3 | . . . 3 Ally Attacks 39 | . . . 39 Total Damage 58 | . . . 58 Kills . | . . . . Allies Corrupted . | . . . . Allies Melted . | . . . . Intel | -11 -10 -10 -10 ------- Run | Yrd Mat Min Exi Active Infowar (turns) 4709 | 3 1633 1620 1453 Seismic 4709 | 3 1633 1620 1453 Robot Analysis Total 1 | . 1 . . Derelict Logs Recovered 1 | . . 1 . Drone Launches . | . . . . Drone Recoveries . | . . . . Exploration | -11 -10 -10 -10 ------------- Run | Yrd Mat Min Exi Turns Passed 5189 | 121 1633 1620 1815 Spaces Moved 1620 | 63 518 482 557 Core 23 | 23 . . . Treads 1555 | 40 518 482 515 Legs . | . . . . Wheels 42 | . . . 42 Hover . | . . . . Flight . | . . . . Fastest Speed 50 | 50 160 320 175 Average Speed 296 | 120 281 321 309 Slowest Speed 480 | 160 320 480 320 Overloaded Moves . | . . . . Propulsion Burnouts . | . . . . Robots Hopped . | . . . . Potential Cave-ins . | . . . . Cave-ins Triggered . | . . . . Exploration Rate (%) 66 | 4 91 91 78 Regions Visited 3 Branch Regions 2 Pre-discovered Areas . | . . . . Known Exits Taken . | . . . . Unknown Exits Taken 3 | 1 1 1 . Scrap Searched 1 | . . 1 . Spaces Dug . | . . . . Terrain Destroyed 67 | . . . 67 Melee . | . . . . Projectile . | . . . . AOE 67 | . . . 67 Terrain Rammed . | . . . . Walls Destroyed . | . . . . Machines Disabled . | . . . . Actions | -11 -10 -10 -10 --------- Run | Yrd Mat Min Exi Total 1810 | 87 597 516 610 Wait 19 | . 15 2 2 Move 1617 | 62 517 481 557 Hop . | . . . . Pick Up 26 | 8 11 1 6 Fast Attach 2 | 2 . . . Attach 11 | 5 1 3 2 Detach . | . . . . Swap 5 | . 2 . 3 Drop 8 | . 1 . 7 Fire 117 | 10 48 26 33 Melee . | . . . . Ram . | . . . . Kick . | . . . . Crush 5 | . 2 3 . Escape Stasis . | . . . . Rewire . | . . . . Trap . | . . . . Miscellaneous . | . . . . Route ------- -11/Scrapyard -10/Materials (discovered 6 exits: [*Mat x3] / *Min x2 / [*Sub]) -10/Mines (discovered 4 exits: [*Mat x2] / *Exi / [*Sub]) -10/Exiles (discovered 1 exit: [*Min]) History --------- Turn | Location | Event 17 | -11/Scrapyard | Discovered new exit (range 15) 122 | -11/Scrapyard | Entered Materials 195 | -10/Materials | Discovered new exit (range 12) 312 | -10/Materials | Build established: Mutant 384 | -10/Materials | Discovered new exit (range 15) 847 | -10/Materials | Discovered new exit (range 6) 1090 | -10/Materials | Discovered new exit (range 7) 1157 | -10/Materials | Discovered new exit (range 9) 1344 | -10/Materials | Discovered new exit (range 6) 1755 | -10/Materials | Entered Mines 1784 | -10/Mines | Core integrity fell below 50% 1801 | -10/Mines | Met a Derelict bent on vengeance 1804 | -10/Mines | Lost 4 parts (1p1n2w) 1953 | -10/Mines | Assisted by bots powering up and referring to "LRC-V3" 2007 | -10/Mines | Discovered new exit (range 6) 2190 | -10/Mines | Discovered new exit (range 13) 2484 | -10/Mines | A weapon hastily lodged in a ceiling crevice suddenly fell to the ground 2692 | -10/Mines | Discovered new exit (range 9) 2805 | -10/Mines | Received a Rocket Launcher from a helpful Derelict 3080 | -10/Mines | Deemed a non-threat by the Exiles lab entrance 3080 | -10/Mines | Discovered new exit (range 5) 3125 | -10/Mines | Learned 4 Materials zone layouts 3375 | -10/Mines | Entered Exiles 3375 | -10/Exiles | Accompanied by 3 allies 3465 | -10/Exiles | Met 8R-AWN 3510 | -10/Exiles | Met EX-HEX 3609 | -10/Exiles | Met EX-BIN 3644 | -10/Exiles | Aligned with FarCom system 3647 | -10/Exiles | Given EX-Vault access code 3721 | -10/Exiles | Opened EX-Vault 3804 | -10/Exiles | Warned to stay clear of 0b10 Research branches 3900 | -10/Exiles | Met EX-DEC 4054 | -10/Exiles | Discovered new exit (range 14) 4362 | -10/Exiles | Visited The Gauntlet 5074 | -10/Exiles | Attacked by the Exiles 5156 | -10/Exiles | Core integrity fell below 20% 5190 | -10/Exiles | Destroyed by 8R-AWN with 8R-AWN's Boregun Last Messages --------------- 05175_ HV Slug penetrates Wall. 05176_ Machine disabled. 05177_ The unstable cave ceiling collapses. 05178_ HV Slug penetrates Wall. 05178_ Penetrated by HV Slug. 05178_ HV Slug penetrates Wall. 05180_ Penetrated by HV Slug. 05180_ Critical hit (Destroy). 05180_ Lgt. Armor Plating destroyed. 05180_ HV Slug penetrates Wall. 05180_ Penetrated by HV Slug. 05180_ HV Slug penetrates Wall. 05182_ Penetrated by HV Slug. 05182_ HV Slug penetrates Wall. 05182_ HV Slug penetrates Earth. 05182_ HV Slug penetrates Wall. 05184_ The unstable cave ceiling collapses. 05185_ Penetrated by HV Slug. 05185_ HV Slug penetrates Earth. 05188_ Penetrated by HV Slug. Map ----- +----------------------------------------------------+ | ?????????????????????????????????????????????????? | | ????????????????????????????????????????????????## | | ????????????????????????????????????????????????"" | | ?####??????????????????????????????????????????""" | | ## ##???????????????????????????????????????#""X | | # #???????????????????????????????????????#" | | # < #???????????????????????????????????????#" | | # ##??????????????????????????????????????#""" | | # ??????????????????????????????????????##"# | | # #?????????????????????????????????????????? | | ?# #?????????????????????????????????????????? | | ?# ##????????????????????????????????????????? | | ??# #????????????#######?????????????????????? | | ??# #######??????#!!! "#?????????????????????? | | ??# #""##?????# "#?????????????????????? | | ???# #?????# "#?????????????????????? | | ???##" ####?## ""#??????????########???? | | ???#"" ##;## "#??????????# """#???? | | ???#### ;#" "#??????????#"" """#???? | | ??????## ; #???###??????#"" #???? | | ???????#"## ##? ##?????#"" #???? | | ???????####### ## ##????#"" "#???? | | ?????????????##; #????# ""#???? | | ???????########" = ###??#"" ""#???? | | ???????# !!""""" *%g #??### ###???? | | ???????#! "# %[@ # ####### | | ???????#! ! ;# = # | | ???????#! !!! ##### g | | ???????# !""""""###???# | | ???????##########?????### | | ????????????????????????## | | ????????????????????????# ##; | | ????????????????????????###?# | | ?????????????????????????????# | | ??????????????????????????????## | | ????????????????????????????????#" " | | ???????????????????????????????##" | | ???????????????????????????????#"" "" | | ??????????????????????????????##""" """# | | ??????????????????????????????#""" """## | | ??????????????????????????????#""" ""#? | | ??????????????????????????????#"" ### | | ??????????????????????????????#""" # | | ??????????????????????????????#"" | | ??????????????????????????????##"" | | ???????????????????????????????#"""" | | ???????????????????????????????## | | ????????????????????????????????#" | | ????????????????????????????????#"""" | | ????????????????????????????????#"" | +----------------------------------------------------+ Best States ------------- Heat Dissipation 25 Energy Generation 10 Energy Capacity 250 Matter Stores 300 Matter Capacity 300 Sight Range 16 Terrain Scan Density 10 Armor Coverage 150 Evasion (%) 50 Recoil Reduction 2 Item Schematics ----------------- None Robot Schematics ------------------ None Fabricated ------------ Nothing Repaired ---------- Nothing Alien Tech Used ----------------- None Achievements -------------- None Challenges ------------ None Game ------ Seed FrostInsulationOptics Manual? 0 Play Time 00:17:25 Cumulative 81.5 hours Start 2025.07.06 @ 13:37:40 End 2025.07.06 @ 13:52:53 Sessions 1 Manual Loads 0 Difficulty Rogue Special Mode None Game No. 144 Rogue 144 Adventurer 0 Explorer 0 Win Type - Total 1 Types 1/0/0/0/0/0/0/0/0/0 Lore% 57 Gallery% 48 Achievement% 41 Wizard Run 0 Options --------- Layout 0 ASCII 0 Keyboard 0 Movement Mouse Keybinds 0 Fullscreen 1 Font 16/SmallcapsGlow Map View 75x55 Zoom Use 0% Tactical HUD 1 Map Filters NONE Filters NONE Steam 1 RUN: 91902f7f-17bf-4971-b0c5-42a32943c3a2